Cogmind - Beta 16 @@@ ROGUE MODE // 2025.10.24 @ 17:35:10 Player: human Result: Destroyed by G-50 Soldier with Heavy Laser Performance ------------- Evolutions (5) 2500 Regions Visited (10) 2000 Robots Destroyed (221) 1105 Value Destroyed (8488) 8488 Prototype IDs (29) 580 Alien Tech Used (0) 0 Bonus (7229) 7229 TOTAL SCORE: 21902 Bonus ------- Triggered High Security 500 High Alert Combat Kills 2443 Follower Combat Kills 2243 Network Hubs Disabled 200 Registered with UFD 300 Met Optimus in HQ 500 Built Enhanced Grunts 300 A7 Reached Mainframe 300 Met R17 at Cetus 500 Friendly Fire -57 Cogmind --------- Core Integrity 0/1000 Matter 278/300 Energy 150/150 System Corruption 65% Temperature Cool (9) Movement Walking (610) Ox7 Location -5/Upper Caves Parts ------- > --- POWER (1) -------- Micro Fission Core > --- PROPULSION (4) --- Carbon-fiber Leg > --- UTILITY (7) ------ Huge Storage Unit Improved Signal Interpreter Experimental Targeting Computer Core Analyzer Improved Kinecellerator Makeshift Light Armor Plating Makeshift Light Armor Plating > --- WEAPON (5) ------- Enhanced Gauss Cannon Enhanced Gauss Cannon (fused) Makeshift Axe > --- INVENTORY (25) --- Light Angular Momentum Engine Light Angular Momentum Engine Advanced Cooling System Advanced Energy Well (500) High-capacity Matter Pod (200) Matter Compressor (250) Advanced Signal Interpreter 0b10 Decoder Chip [Looter] 0b10 Decoder Chip [Looter] 0b10 Decoder Chip [Skirmisher] Advanced Melee Analysis Suite Improved Particle Charger Improved Weapon Cycler Hacking Suite Improved Component Analysis Suite Long-range Tractor Beam Improved Plasma Cutter Shock Maul Dirty Bomb Trap Dirty Bomb Trap DRS Beacon (Ready) Botcube Peak State ------------ > --- POWER ------------ Quantum Reactor > --- PROPULSION ------- Enhanced Flexi-carbon Leg Wheel Wheel Wheel > --- UTILITY ---------- Advanced Heat Sink Huge Storage Unit Improved Sensor Array Advanced Signal Interpreter Core Analyzer Centrium Medium Armor Plating Centrium Medium Armor Plating > --- WEAPON ----------- Cooled Pulse Rifle Cooled Pulse Rifle Cooled Plasma Rifle Advanced Variable Charge Gun Advanced Variable Charge Gun > --- INVENTORY -------- Quantum Reactor Advanced Heat Sink Advanced Heat Sink Advanced Energy Well Matter Compressor Advanced Signal Interpreter Core Analyzer Kinecellerator Centrium Medium Armor Plating Centrium Medium Armor Plating Neutron Cannon Advanced KE Penetrator Advanced KE Penetrator Advanced KE Penetrator Advanced KE Penetrator Advanced KE Penetrator Long-range Missile Launcher Plasma Cutter Junk Cannon Shock Maul DRS Beacon Botcube [Rating: 103] Favorites ----------- Power Ion Engine Engine Ion Engine Power Core Light Fission Core Reactor Quantum Reactor Propulsion Wheel Treads Light Treads Leg Carbon-fiber Leg Wheel Wheel Utility Huge Storage Unit Device Advanced Heat Sink Storage Huge Storage Unit Processor Core Analyzer Hackware Improved Hacking Suite Protection Centrium Medium Armor Plating Weapon Cooled Pulse Rifle Energy Gun Cooled Pulse Rifle Energy Cannon Neutron Cannon Ballistic Gun Battle Rifle Ballistic Cannon Enhanced Gauss Cannon Launcher Long-range Missile Launcher Special Weapon Plasma Cutter Impact Weapon Shock Maul Slashing Weapon Makeshift Axe Special Melee Weapon Improved Datajack Build | -11 -10 -10 -9 -6 -6 -6 -6 -6 -5 -5 ------- Run | Yrd Mat Sub Scr Fac Ext Cet Arc Hub Fac Upp Slots Evolved 10 | . . . . 8 . . . . 2 . Power . | . . . . . . . . . . . Propulsion 2 | . . . . 2 . . . . . . Utility 5 | . . . . 4 . . . . 1 . Weapon 3 | . . . . 2 . . . . 1 . Parts Attached 187 | 6 10 6 4 46 21 11 2 9 57 15 Power 19 | 1 1 . . 3 3 2 . . 7 2 Engine 7 | 1 1 . . 1 2 . . . 2 . Core 10 | . . . . 2 1 1 . . 4 2 Reactor 2 | . . . . . . 1 . . 1 . Propulsion 58 | 2 3 2 1 13 8 1 . 3 23 2 Treads 3 | 2 . . . 1 . . . . . . Leg 5 | . . . . 2 . . . . 1 2 Wheel 50 | . 3 2 1 10 8 1 . 3 22 . Hover . | . . . . . . . . . . . Flight . | . . . . . . . . . . . Utility 57 | 1 3 1 2 16 5 4 2 4 14 5 Device 24 | . . . 1 6 4 1 2 3 6 1 Storage 7 | 1 1 . 1 1 1 1 . 1 . . Processor 9 | . 2 . . 3 . . . . 4 . Hackware 4 | . . . . 3 . . . . 1 . Protection 13 | . . 1 . 3 . 2 . . 3 4 Artifact . | . . . . . . . . . . . Weapon 53 | 2 3 3 1 14 5 4 . 2 13 6 Energy Gun 22 | 1 1 2 . 7 2 3 . 1 4 1 Energy Cannon 1 | . . . . . . . . . 1 . Ballistic Gun 16 | 1 1 1 . 4 . . . . 8 1 Ballistic Cannon 3 | . . . . 1 . . . . . 2 Launcher 1 | . . . . . 1 . . . . . Special Weapon 4 | . . . 1 1 1 1 . . . . Impact Weapon 2 | . 1 . . . . . . 1 . . Slashing Weapon 3 | . . . . 1 . . . . . 2 Piercing Weapon . | . . . . . . . . . . . Special Melee Weapon 1 | . . . . . 1 . . . . . Unidentified Prototypes 14 | . . . . 3 1 2 . 3 5 . Corrupted Parts 3 | . . . . . . . . . 1 2 System Corruption 23 | . . . . . . . . . 7 16 Parts Lost 112 | . 3 2 . 17 11 6 . 5 55 13 Power 13 | . 1 . . 1 3 1 . . 6 1 Propulsion 41 | . 1 2 . 5 5 2 . 2 20 4 Utility 24 | . . . . 5 1 1 . 2 11 4 Weapon 34 | . 1 . . 6 2 2 . 1 18 4 Highest Loss Streak 10 | . 2 1 . 6 3 4 . 3 10 7 To Critical Strikes 1 | . . . . . 1 . . . . . Average Backups 16 | 2 7 9 14 18 21 21 22 20 18 16 Power . | . . . . 1 . 1 1 1 1 1 Propulsion . | 1 2 . . 1 . . . . . . Utility 8 | . 2 4 7 9 10 10 11 10 8 12 Weapon 4 | . 1 4 5 4 7 7 9 8 6 . Tool/Special . | . . . . . . . . . . . Unused Backups 38 | . 1 2 6 7 3 3 . 1 1 14 Power 5 | . . . . 2 . 1 . . . 2 Propulsion . | . . . . . . . . . . . Utility 23 | . 1 . 3 3 2 1 . 1 1 11 Weapon 9 | . . 2 3 2 1 1 . . . . Tool/Special 1 | . . . . . . . . . . 1 Average Slot Usage (%) 92 | . 97 99 96 93 98 95 92 94 91 73 Engine 5 | . 13 14 14 . 2 . . . . . Core 2 | . . . . 5 2 4 . . 2 4 Treads 1 | . 15 . . 1 . . . . . . Wheel 19 | . 12 27 24 20 24 23 20 22 18 4 Device 8 | . . . 4 10 19 16 12 12 9 7 Storage 8 | . 14 14 14 6 6 6 6 6 5 5 Processor 9 | . 12 . . 6 13 13 13 13 14 17 Hackware 1 | . . . . 9 . . . . . . Protection 6 | . . 14 8 3 . 2 6 6 6 8 Energy Gun 12 | . 9 8 14 12 20 24 26 24 11 3 Ballistic Gun 8 | . 15 14 14 6 . . . . 11 2 Ballistic Cannon 1 | . . . . 3 . . . . . 5 Impact Weapon 1 | . 2 5 . . . . . . . 2 Peak Build Rating 103 | 6 8 14 20 71 70 80 80 87 103 76 Average Rating 51 | 4 7 11 16 59 64 70 79 81 84 64 On Entrance 42 | . 6 7 14 20 63 70 80 80 80 50 Avg Prop Armor Cover (%) 5 | . . . 4 7 . . . . 2 5 Naked Turns . | . . . . . . . . . . . Heaviest Build 144 | 13 18 23 52 123 120 126 128 131 144 119 Greatest Support 64 | 40 40 36 36 64 58 46 30 40 52 44 Greatest Overweight (x) 39 | . . 2 3 3 4 4 4 4 34 39 Average Overweight (x) 2 | . . . 1 1 1 2 4 3 3 6 Largest Inventory Capacity 25 | 8 10 10 20 25 25 25 25 25 25 25 Average Capacity 20 | 6 8 10 18 23 25 25 25 25 25 25 Most Carried 25 | 4 9 10 20 25 25 25 25 25 25 23 Average Carried 18 | 2 7 9 15 21 24 24 25 23 21 18 Final Capacity 25 | 8 10 10 20 25 25 25 25 25 25 25 Final Carried 25 | 4 9 10 20 25 25 25 25 24 16 22 Class Distribution -------------------- 40% | Mutant 13% | Scavenger-Gunner 11% | Scavenger-Tank 7% | Scavenger-Mutant 6% | Commander-Gunner 6% | Hacker-Skirmisher 5% | Scavenger-Skirmisher 4% | Gunner 3% | Skirmisher Dominant Class ---------------- Mutant | -10/Materials Mutant | -10/Subcaves Mutant | -9/Scraptown Hacker-Skirmisher | -6/Factory Scavenger-Gunner | -6/Extension Commander-Gunner | -6/Cetus Commander-Gunner | -6/Archives Scavenger-Gunner | -6/Hub_04(d) Scavenger-Tank | -5/Factory Mutant | -5/Upper Caves Resources | -11 -10 -10 -9 -6 -6 -6 -6 -6 -5 -5 ----------- Run | Yrd Mat Sub Scr Fac Ext Cet Arc Hub Fac Upp Matter Collected 5826 | 213 506 115 300 1615 302 190 40 110 1889 546 Remotely . | . . . . . . . . . . . Salvage Created 8627 | . 705 207 . 1600 1235 55 198 425 3811 391 Parts 391 | . 37 8 . 71 46 1 7 21 183 17 Haulers Intercepted 1 | . 1 . . . . . . . . . Recyclers Shooed 6 | . 2 . . 2 . . . . 2 . Parts Field Recycled . | . . . . . . . . . . . Retrieved Matter . | . . . . . . . . . . . Parts Self-Destructed 23 | . . 4 . . . . . . . 19 Prevented 5 | . . . . . . . . . . 5 Parts Restored . | . . . . . . . . . . . Kills | -11 -10 -10 -9 -6 -6 -6 -6 -6 -5 -5 ------- Run | Yrd Mat Sub Scr Fac Ext Cet Arc Hub Fac Upp Combat Hostiles Destroyed 160 | . 18 4 . 30 16 1 1 5 72 13 Melee 3 | . 1 . . . . . . . 1 1 Guns 113 | . 16 4 . 14 15 1 1 5 53 4 Cannons 29 | . . . . 14 . . . . 7 8 AOE 12 | . . . . 2 1 . . . 9 . Classes Destroyed 20 | . 5 2 . 5 4 . . . 3 1 Worker 28 | . . . . 9 1 . . 6 12 . Builder 8 | . . . . . 1 . . . 7 . Tunneler 4 | . . . . . 1 . . 1 2 . Hauler 1 | . 1 . . . . . . . . . Recycler 2 | . . . . 1 1 . . . . . Minesweeper 1 | . . . . . . . . . . 1 Mechanic 3 | . . . . . . . . . 3 . Operator 8 | . 2 . . 1 1 . 4 . . . Watcher 6 | . 1 . . . 2 . . . 3 . Swarmer 39 | . 6 . . . 1 . . . 24 8 Saboteur 1 | . . . . . . . . . 1 . Grunt 70 | . 12 . . 15 7 . . 4 27 5 Brawler 7 | . . . . 1 . . . . 6 . Duelist 2 | . . . . . 1 . . . 1 . Protector 1 | . . . . . . . . . 1 . Sentry 15 | . . 1 . 6 6 . 1 . 1 . Hunter 10 | . . . . 4 . . . 1 5 . Programmer 10 | . . . . 4 . . . . 6 . Behemoth 1 | . . . . . 1 . . . . . Cetus Guard 1 | . . . . . . 1 . . . . Subdweller 3 | . . 3 . . . . . . . . Best Kill Streak 11 | . 4 2 . 7 4 1 3 4 11 4 Combat Bots Only 8 | . 4 2 . 7 3 1 1 3 8 4 Max Kills in Single Turn 5 | . 2 1 . 2 2 1 1 2 5 1 Gunslinging 2 | . 1 . . . . . . . 2 . Exploded 3 | . . . . 1 1 . . . 3 . Melee 1 | . 1 . . . . . . . 1 1 Uniques/NPCs Destroyed . | . . . . . . . . . . . Combat | -11 -10 -10 -9 -6 -6 -6 -6 -6 -5 -5 -------- Run | Yrd Mat Sub Scr Fac Ext Cet Arc Hub Fac Upp Hostile Shots Fired 1310 | . 98 20 . 310 142 30 9 82 441 178 Missed 418 | . 32 5 . 95 62 10 3 41 113 57 Hits 892 | . 66 15 . 215 80 20 6 41 328 121 Melee 9 | . . . . . . . . . 9 . Projectile 883 | . 66 15 . 215 80 20 6 41 319 121 Critical Strikes 26 | . . . . 5 5 . . . 14 2 Damage Taken 14818 | . 740 280 . 2806 1056 456 151 428 6740 2161 Core 1672 | . 166 48 . 160 138 60 50 49 526 475 Absorbed by Shields 135 | . . . . . 8 127 . . . . Regen/Repaired (Parts) 179 | . . . . . . . . . 179 . Core Remaining (%) 53 | 100 . . 14 . . . . 46 . . Volleys Fired 437 | . 71 15 . 86 55 9 15 28 129 29 Largest 5 | . 2 2 . 4 4 4 4 4 5 3 Hottest 289 | . 60 175 . 218 130 160 140 200 289 177 Shots Fired 1300 | . 140 30 . 271 161 26 60 75 481 56 Gun 1145 | . 140 30 . 207 153 24 60 75 433 23 Cannon 134 | . . . . 64 . . . . 37 33 Launcher 11 | . . . . . 4 . . . 7 . Special 10 | . . . . . 4 2 . . 4 . Kinetic 535 | . 76 15 . 161 . . . . 238 45 Thermal 735 | . 64 6 . 106 157 24 60 75 232 11 Explosive 11 | . . . . . 4 . . . 7 . Electromagnetic 13 | . . 9 . 4 . . . . . . Impact 4 | . . . . . . . . . 4 . Robot Hit Streak 29 | . 9 18 . 29 21 10 17 16 8 7 Robot Miss Streak 8 | . 3 1 . 4 4 2 3 3 8 4 Penetration Max 1 | . . . . . . . . . 1 . Secondary Targets 26 | . 1 . . 2 4 . . . 18 1 Max Gunslinging Chain 3 | . 1 . . 1 1 . . . 3 1 Shots Hit Robots 812 | . 100 26 . 183 150 22 37 40 229 25 Core Hits 423 | . 39 10 . 89 59 8 15 21 169 13 Critical Kills 9 | . . . . 1 . . . . 8 . Critical Parts Destroyed 16 | . 2 . . 3 . . . . 10 1 Critical Strikes 46 | . 2 1 . 10 3 . 2 1 23 4 Burn 16 | . . 1 . 4 3 . 2 1 5 . Destroy 20 | . . . . 4 . . . . 16 . Blast 5 | . . . . 2 . . . . . 3 Smash 5 | . 2 . . . . . . . 2 1 Melee Attacks 79 | . 9 12 . 11 29 . . . 14 4 Impact 36 | . 9 12 . . . . . . 14 1 Slashing 16 | . . . . 11 2 . . . . 3 Piercing . | . . . . . . . . . . . Sneak Attacks 30 | . . . . . 27 . . . 3 . Combat Hostiles . | . . . . . . . . . . . Follow-up Attacks . | . . . . . . . . . . . Damage Inflicted 22444 | . 1183 495 . 5352 3079 545 824 872 9173 921 Guns 15329 | . 1081 495 . 2871 2548 545 824 872 5763 330 Cannons 2872 | . . . . 1550 . . . . 815 507 Explosions 3462 | . . . . 931 509 . . . 2022 . Melee 548 | . 102 . . . . . . . 362 84 Ramming . | . . . . . . . . . . . Kinetic 7455 | . 564 185 . 2811 . . . . 3147 748 Thermal 11672 | . 517 153 . 2066 2570 545 824 872 4036 89 Explosive 2187 | . . . . 416 509 . . . 1262 . Electromagnetic 371 | . . 157 . 59 . . . . 155 . Impact 727 | . 102 . . . . . . . 573 52 Slashing 32 | . . . . . . . . . . 32 Piercing . | . . . . . . . . . . . Highest Corruption 65 | . . . . 5 5 5 5 . 48 65 Average Corruption 21 | . . . . 2 5 5 4 . 24 59 Corruption Purged 5 | . . . . . . . 5 . . . Corruption Blocked . | . . . . . . . . . . . Effects 282 | . . . . 32 36 10 3 . 94 107 Message Errors 67 | . . . . 4 14 3 2 . 20 24 Matter Fused 57 | . . . . 12 5 3 . . 20 17 Heat Flow Errors 31 | . . . . 1 4 1 . . 8 17 Energy Discharges 33 | . . . . 3 5 1 . . 12 12 Parts Rejected 5 | . . . . 1 . . . . 2 2 Parts Fused 3 | . . . . . . . . . 2 1 Data Loss (minor) 26 | . . . . 5 3 1 . . 5 12 Data Loss (major) 16 | . . . . 2 1 . 1 . 5 7 Misfires 11 | . . . . 2 2 . . . 4 3 Alerts 7 | . . . . 2 1 1 . . 1 2 Misdirections 3 | . . . . . . . . . 1 2 Weapon Failures 23 | . . . . . 1 . . . 14 8 Overload Shots 18 | . . 5 . 6 2 4 . . 1 . Effects 1 | . . 1 . . . . . . . . Energy Bleed 1 | . . 1 . . . . . . . . Overflow Damage 752 | . 71 . . 115 26 . . . 460 80 Projectiles 129 | . . . . 10 . . . . 91 28 Explosions 198 | . . . . 105 26 . . . 67 . Melee 425 | . 71 . . . . . . . 302 52 Knockbacks 14 | . . . . 9 . . . . 2 3 Impact 2 | . . . . . . . . . 2 . Kinetic 12 | . . . . 9 . . . . . 3 Secondary . | . . . . . . . . . . . Self-Inflicted Damage 243 | . . . . 107 . . . . 136 . Shots 5 | . . . . 2 . . . . 3 . Rammed . | . . . . . . . . . . . Targets Rammed . | . . . . . . . . . . . Kicked . | . . . . . . . . . . . Crushed . | . . . . . . . . . . . Highest Temperature 411 | . 84 316 . 347 278 38 . 66 411 274 Average Temperature 94 | . 36 114 . 77 113 38 . 18 129 82 Received Heat Transfer 3443 | . 348 72 . 840 729 79 18 87 865 405 Effects 13 | . . . . . . . . . 13 . Shutdowns 1 | . . . . . . . . . 1 . Energy Bleed 1 | . . . . . . . . . 1 . Interference 10 | . . . . . . . . . 10 . Damage (minor) 1 | . . . . . . . . . 1 . Siege Activations . | . . . . . . . . . . . Martial Activations . | . . . . . . . . . . . Shielding Activations . | . . . . . . . . . . . Robots Disrupted 2 | . . . . . . . . . 2 . Combat Hostiles 2 | . . . . . . . . . 2 . Robots Corrupted 2 | . 1 . . . . . . . 1 . Combat Hostiles 2 | . 1 . . . . . . . 1 . Parts Fried 6 | . . 1 . . . . . . 4 1 Impact Corruptions 11 | . 2 . . . . . . . 8 1 Robots Melted 1 | . . . . . . . . . 1 . Combat Hostiles 1 | . . . . . . . . . 1 . Parts Melted 46 | . 2 . . 6 15 . 4 4 15 . Heat Transferred 19676 | . 1175 337 . 3953 4681 866 1517 1665 5282 200 Parts Sabotaged 3 | . . . . . . . . . 3 . Parts Stolen . | . . . . . . . . . . . Parts Stripped . | . . . . . . . . . . . Power Chain Reactions . | . . . . . . . . . . . Alert | -11 -10 -10 -9 -6 -6 -6 -6 -6 -5 -5 ------- Run | Yrd Mat Sub Scr Fac Ext Cet Arc Hub Fac Upp Maximum Alert Level 5 | . 1 . . 2 2 2 2 3 5 . Low Security (%) 40 | 100 96 . . 54 76 . 7 9 . . Level 1 12 | . 3 . . 20 11 10 90 9 3 . Level 2 16 | . . . . 25 11 89 2 30 8 . Level 3 14 | . . . . . . . . 50 33 . Level 4 8 | . . . . . . . . . 27 . Level 5 5 | . . . . . . . . . 20 . High Security 1 | . . . . . . . . . 5 . Max Security . | . . . . . . . . . . . Peak Influence 2133 | . 216 . . 465 665 499 407 884 2133 . Initial 424 | . . . . . 205 369 179 117 424 . Average 531 | . 83 . . 179 195 457 344 625 1233 . Influence Increases 8202 | . 628 20 . 1163 1200 369 288 1191 2943 400 Destroy 0b10 Robot/C 4080 | . 360 20 . 600 680 160 80 380 1540 260 Destroy 0b10 Robot/NC 350 | . 20 . . 55 40 10 25 55 140 5 Destroy Leader 708 | . 74 . . 170 74 . . 124 236 30 Allied During Kill 1309 | . . . . . 309 168 105 559 168 . Trap Triggered on 0b10 10 | . . . . 10 . . . . . . Successful Hack 147 | . 35 . . 32 23 9 . 15 33 . Select Force Hacks 60 | . 60 . . . . . . . . . Disable Machine 705 | . . . . 180 30 . 75 30 390 . Destroy Structure 608 | . 4 . . 101 44 22 3 28 406 . Lose Combat Pursuer 225 | . 75 . . 15 . . . . 30 105 Influence Decreases 7181 | . 435 213 . 742 960 582 399 660 1702 1488 Entered New Map 2315 | . . 93 . . 216 292 269 220 444 781 Time Decay 3271 | . 411 100 . 411 514 150 110 350 648 577 Lost Part 1104 | . 24 10 . 170 110 60 . 50 550 130 Lost Ally 330 | . . 10 . . 120 80 20 40 60 . Purge Threat 161 | . . . . 161 . . . . . . Squads Dispatched 51 | . 4 . . 13 5 . . 7 22 . Investigation 17 | . 2 . . 8 2 . . 3 2 . Extermination 9 | . . . . 4 . . . 1 4 . Reinforcement 10 | . 2 . . . 3 . . 3 2 . Assault 10 | . . . . 1 . . . . 9 . Garrison 5 | . . . . . . . . . 5 . Intercept . | . . . . . . . . . . . Searches Triggered . | . . . . . . . . . . . Construction Impeded 1 | . . . . . . . . . 1 . Haulers Reinforced 1 | . . . . . . . . . 1 . Active Scanning Responses . | . . . . . . . . . . . Cargo Convoy Interrupts . | . . . . . . . . . . . Stealth | -11 -10 -10 -9 -6 -6 -6 -6 -6 -5 -5 --------- Run | Yrd Mat Sub Scr Fac Ext Cet Arc Hub Fac Upp Distress Signals 10 | . 1 . . 1 1 2 . 1 4 . Communications Jammed . | . . . . . . . . . . . Distress Signals . | . . . . . . . . . . . Times Spotted 287 | . 32 4 . 40 40 11 5 19 108 28 Peak Tracking Total 9 | . 5 2 . 7 4 5 2 5 9 5 Tactical Retreats 12 | . 3 . . 1 . . . . 2 6 Traps | -11 -10 -10 -9 -6 -6 -6 -6 -6 -5 -5 ------- Run | Yrd Mat Sub Scr Fac Ext Cet Arc Hub Fac Upp Traps Triggered 17 | . 1 . . 4 6 . . 1 4 1 Indirectly . | . . . . . . . . . . . Trap Hack Attempts . | . . . . . . . . . . . Triggered . | . . . . . . . . . . . Disarmed . | . . . . . . . . . . . Reprogrammed . | . . . . . . . . . . . Reused 1 | . . . . 1 . . . . . . Traps Extracted . | . . . . . . . . . . . Installed 1 | . . . . 1 . . . . . . Triggered 1 | . . . . 1 . . . . . . Most Traps Carried 2 | . . . 1 1 . . . . . 2 Machines | -11 -10 -10 -9 -6 -6 -6 -6 -6 -5 -5 ---------- Run | Yrd Mat Sub Scr Fac Ext Cet Arc Hub Fac Upp Machines Disabled 48 | . . . . 12 3 . 5 2 26 . Max in Single Turn 6 | . . . . 2 1 . 1 1 6 . Garrison Access 2 | . . . . . . . . . 2 . Network Hub 1 | . . . . . . . . 1 . . Machines Repaired . | . . . . . . . . . . . Machines Dismantled 3 | . . . . . 1 . . 1 1 . Machines Sabotaged . | . . . . . . . . . . . Overloaded Fab Kills . | . . . . . . . . . . . Hacking | -11 -10 -10 -9 -6 -6 -6 -6 -6 -5 -5 --------- Run | Yrd Mat Sub Scr Fac Ext Cet Arc Hub Fac Upp Machines Accessed 61 | . 8 . 3 18 9 1 1 5 14 2 Terminals 32 | . 6 . . 8 8 1 . 5 3 1 Fabricators 4 | . . . . 2 . . . . 2 . Repair Stations 2 | . . . . . . . . . 2 . Recycling Units 12 | . 2 . . 6 1 . . . 3 . Scanalyzers 4 | . . . . 2 . . . . 2 . Garrison Access 2 | . . . . . . . . . 2 . Total Hacks 126 | . 21 . 5 36 15 1 6 11 28 3 Successful 70 | . 14 . 5 22 5 1 6 4 10 3 Failed 55 | . 7 . . 13 10 . . 7 18 . Catastrophic 11 | . . . . 1 3 . . . 7 . Database Lockouts 1 | . . . . 1 . . . . . . Manual 73 | . 20 . . 22 8 1 . 11 11 . Terminals 74 | . 19 . . 23 13 1 . 11 5 2 Fabricators 9 | . . . . 5 . . . . 4 . Repair Stations 5 | . . . . . . . . . 5 . Recycling Units 16 | . 2 . . 6 2 . . . 6 . Scanalyzers 5 | . . . . 2 . . . . 3 . Garrison Access 5 | . . . . . . . . . 5 . Terminal Hacks 30 | . 2 . 5 8 3 1 6 2 . 3 Record 13 | . . . 4 1 . . 6 . . 2 Robot Analysis 1 | . 1 . . . . . . . . . Prototype ID Bank 1 | . . . . 1 . . . . . . Open Door 5 | . . . . . 3 1 . . . 1 Level Access Points 1 | . . . . . . . . 1 . . Branch Access Points 1 | . . . . 1 . . . . . . Machine Index 1 | . . . . 1 . . . . . . Terminal Index 2 | . 1 . . . . . . 1 . . Alert Level 1 | . . . . 1 . . . . . . Unreport Threat 2 | . . . . 2 . . . . . . Transport Status 1 | . . . . 1 . . . . . . Proto ID Catalog 1 | . . . 1 . . . . . . . Fabricator Hacks 2 | . . . . 1 . . . . 1 . Network Status 2 | . . . . 1 . . . . 1 . Repair Station Hacks 2 | . . . . . . . . . 2 . Scan Component 1 | . . . . . . . . . 1 . Repair 1 | . . . . . . . . . 1 . Recycling Unit Hacks . | . . . . . . . . . . . Scanalyzer 2 | . . . . 1 . . . . 1 . Retrieve Study 2 | . . . . 1 . . . . 1 . Garrison Access Hacks 2 | . . . . . . . . . 2 . Seal Access 2 | . . . . . . . . . 2 . Unauthorized Hacks 32 | . 12 . . 12 2 . . 2 4 . Terminals 21 | . 10 . . 6 1 . . 2 2 . Assimilate 2 | . 1 . . 1 . . . . . . Botnet 10 | . 3 . . 4 1 . . . 2 . Operators 2 | . 1 . . 1 . . . . . . Skim 5 | . 5 . . . . . . . . . Sabotage 2 | . . . . . . . . 2 . . Fabricators . | . . . . . . . . . . . Repair Stations . | . . . . . . . . . . . Recycling Units 11 | . 2 . . 6 1 . . . 2 . Tunnel 2 | . 2 . . . . . . . . . Fedlink 9 | . . . . 6 1 . . . 2 . Scanalyzers . | . . . . . . . . . . . Garrison Access . | . . . . . . . . . . . Data Cores Recovered 2 | . 1 . . . . . . 1 . . Used 2 | . 1 . . . . . . 1 . . Hacking Detections 30 | . 4 . . 8 6 . . 2 10 . Full Trace Events 2 | . . . . 1 . . . 1 . . Feedback Events 1 | . . . . 1 . . . . . . Corruption 1 | . . . . 1 . . . . . . Feedback Blocked . | . . . . . . . . . . . Robot Schematics Acquired . | . . . . . . . . . . . Robots Built . | . . . . . . . . . . . Authchips . | . . . . . . . . . . . Time . | . . . . . . . . . . . Total Robot Build Rating . | . . . . . . . . . . . Part Schematics Acquired . | . . . . . . . . . . . Parts Built . | . . . . . . . . . . . Authchips . | . . . . . . . . . . . Time . | . . . . . . . . . . . Total Part Build Rating . | . . . . . . . . . . . Part Studies Acquired 2 | . . . . 1 . . . . 1 . Parts Repaired 1 | . . . . . . . . . 1 . Time 108 | . . . . . . . . . 108 . Parts Recycled . | . . . . . . . . . . . Recycled Matter . | . . . . . . . . . . . Retrieved Matter . | . . . . . . . . . . . Retrieved Components . | . . . . . . . . . . . Parts Scanalyzed . | . . . . . . . . . . . Part Schematics Acquired . | . . . . . . . . . . . Parts Damaged . | . . . . . . . . . . . Bothacking | -11 -10 -10 -9 -6 -6 -6 -6 -6 -5 -5 ------------ Run | Yrd Mat Sub Scr Fac Ext Cet Arc Hub Fac Upp Used RIF Installer . | . . . . . . . . . . . Robots Hacked . | . . . . . . . . . . . Non-combat . | . . . . . . . . . . . Combat . | . . . . . . . . . . . Robot Hacks Applied . | . . . . . . . . . . . Relay Couplers Released 3 | . . . . 3 . . . . . . Programmers 3 | . . . . 3 . . . . . . Fabnet Peak Effective % . | . . . . . . . . . . . Robots Rewired 14 | . . . . . 14 . . . . . Allies Hacked . | . . . . . . . . . . . Hacks Repelled . | . . . . . . . . . . . Allies | -11 -10 -10 -9 -6 -6 -6 -6 -6 -5 -5 -------- Run | Yrd Mat Sub Scr Fac Ext Cet Arc Hub Fac Upp Total Allies 25 | . 1 . . 1 18 5 . . . . Largest Group 13 | . 1 1 . 1 12 13 11 9 4 . Highest-Rated Group 790 | . 10 10 . 26 505 790 790 592 377 . Highest-Rated Ally 159 | . 10 10 . 26 159 159 159 96 96 . Total Orders 5 | . . . . 1 2 . . 2 . . STAY 3 | . . . . 1 1 . . 1 . . FOLLOW 2 | . . . . . 1 . . 1 . . Ally Attacks 324 | . . . . . 153 64 19 57 31 . Total Damage 9427 | . . . . . 2692 1645 607 3077 1406 . Kills 62 | . . . . . 20 10 4 21 7 . Allies Corrupted . | . . . . . . . . . . . Allies Melted . | . . . . . . . . . . . Intel | -11 -10 -10 -9 -6 -6 -6 -6 -6 -5 -5 ------- Run | Yrd Mat Sub Scr Fac Ext Cet Arc Hub Fac Upp Active Infowar (turns) 5058 | . 524 . . 1606 1098 13 . 286 1531 . Optics 524 | . 524 . . . . . . . . . Sensors 4258 | . . . . 1330 1098 13 . 286 1531 . Traps 277 | . . . . 277 . . . . . . Robot Analysis Total 1 | . 1 . . . . . . . . . Derelict Logs Recovered 5 | . . 1 2 . . . . . . 2 Drone Launches . | . . . . . . . . . . . Drone Recoveries . | . . . . . . . . . . . Exploration | -11 -10 -10 -9 -6 -6 -6 -6 -6 -5 -5 ------------- Run | Yrd Mat Sub Scr Fac Ext Cet Arc Hub Fac Upp Turns Passed 13791 | 67 1159 1238 2222 2108 1402 309 232 785 2508 1761 Spaces Moved 8386 | 37 754 1121 1520 1431 871 176 92 474 1347 563 Core 31 | 4 . . . . . . . . 1 26 Treads 324 | 33 291 . . . . . . . . . Legs 41 | . . . . . . . . . . 41 Wheels 7990 | . 463 1121 1520 1431 871 176 92 474 1346 496 Hover . | . . . . . . . . . . . Flight . | . . . . . . . . . . . Fastest Speed 50 | 50 80 95 105 101 100 110 140 125 110 120 Average Speed 128 | 148 110 100 126 111 109 119 140 133 127 279 Slowest Speed 2000 | 160 160 120 145 135 145 140 140 140 1750 2000 Overloaded Moves . | . . . . . . . . . . . Propulsion Burnouts . | . . . . . . . . . . . Robots Hopped . | . . . . . . . . . . . Potential Cave-ins 1 | . . 1 . . . . . . . . Cave-ins Triggered 1 | . . . . . . . . . 1 . Exploration Rate (%) 59 | 4 95 72 86 39 87 66 74 35 37 60 Regions Visited 10 Branch Regions 7 Pre-discovered Areas 6 | . 2 2 . 1 . . . . . 1 Known Exits Taken 6 | . . . . 1 1 1 1 1 1 . Unknown Exits Taken 4 | 1 1 1 1 . . . . . . . Scrap Searched 16 | . . 7 5 . . . . . . 4 Spaces Dug 43 | . 4 2 . 18 4 . . 6 8 1 Terrain Destroyed 436 | . 4 2 . 122 54 . 3 8 224 19 Melee 28 | . 4 2 . 11 2 . . . 8 1 Projectile 144 | . . . . 30 3 . 3 8 82 18 AOE 263 | . . . . 81 49 . . . 133 . Terrain Rammed . | . . . . . . . . . . . Walls Destroyed . | . . . . . . . . . . . Machines Disabled . | . . . . . . . . . . . Actions | -11 -10 -10 -9 -6 -6 -6 -6 -6 -5 -5 --------- Run | Yrd Mat Sub Scr Fac Ext Cet Arc Hub Fac Upp Total 10317 | 46 925 1178 1823 1736 1178 258 158 567 1766 682 Wait 845 | . 65 9 270 77 115 37 44 35 141 52 Move 8376 | 36 753 1120 1519 1430 870 175 91 473 1346 563 Hop . | . . . . . . . . . . . Pick Up 156 | 4 12 8 17 38 15 13 . 4 29 16 Fast Attach 102 | 6 3 2 3 25 9 3 4 4 36 7 Attach 76 | . 3 1 1 18 7 5 . 4 28 9 Detach 6 | . . . 1 3 . . . 1 1 . Swap 68 | . 5 5 1 17 15 5 . 4 15 1 Drop 98 | . 4 6 11 30 14 11 4 3 14 1 Fire 437 | . 71 15 . 86 55 9 15 28 129 29 Melee 79 | . 9 12 . 11 29 . . . 14 4 Ram . | . . . . . . . . . . . Kick . | . . . . . . . . . . . Crush . | . . . . . . . . . . . Escape Stasis 56 | . . . . . 40 . . 8 8 . Rewire . | . . . . . . . . . . . Trap 1 | . . . . 1 . . . . . . Miscellaneous 17 | . . . . . 9 . . 3 5 . Route ------- -11/Scrapyard -10/Materials (discovered 5 exits: [*Mat x3] / [*Min] / [*Sub]) -10/Subcaves (discovered 2 exits: [*Mat] / *Scr) -9/Scraptown (discovered 2 exits: *Fac x2) -6/Factory (discovered 5 exits: *Fac / *Low x2 / *Ext x2) -6/Extension (discovered 2 exits: *Fac / *Cet) -6/Cetus (discovered 2 exits: *Fac / *Arc) -6/Archives (discovered 2 exits: *Hub x2) -6/Hub_04(d) (discovered 4 exits: *Fac x4) -5/Factory -5/Upper Caves History --------- Turn | Location | Event 2 | -11/Scrapyard | Met Revision 17 5 | -11/Scrapyard | Discovered new exit (range 16) 68 | -11/Scrapyard | Entered Materials 304 | -10/Materials | Build established: Mutant 306 | -10/Materials | Discovered new exit (range 18) 421 | -10/Materials | Discovered new exit (range 12) 628 | -10/Materials | Discovered new exit (range 18) 823 | -10/Materials | Core integrity fell below 50% 987 | -10/Materials | Discovered new exit (range 11) 1106 | -10/Materials | Learned 2 Mines zone layouts 1165 | -10/Materials | Learned 2 Storage zone layouts 1209 | -10/Materials | Discovered new exit (range 8) 1214 | -10/Materials | Learned location of 1 exit from Storage 1227 | -10/Materials | Entered Subcaves 1227 | -10/Subcaves | Accompanied by 1 ally 1228 | -10/Subcaves | Approached by a straggling Scientist 1231 | -10/Subcaves | Learned location of Zion (-7) 1278 | -10/Subcaves | Shifting Twisted Machinery released Battle Rifle 1283 | -10/Subcaves | Shifting Twisted Machinery released Riot Gun 1401 | -10/Subcaves | Discovered new exit (range 9) 1421 | -10/Subcaves | Met a Zionite searching for "candidates" 1480 | -10/Subcaves | Scientist uncovered a shortcut to Scraptown 1588 | -10/Subcaves | A swath of the cavern ceiling suddenly collapsed 1717 | -10/Subcaves | Disturbed a concealed Subdweller 1929 | -10/Subcaves | Shifting Twisted Machinery released Sub. Machine Gun 2338 | -10/Subcaves | Core integrity fell below 20% 2465 | -10/Subcaves | Entered Scraptown 2497 | -9/Scraptown | Visited Spacefarers 2557 | -9/Scraptown | Scanned Subdweller tech in exchange for log data 2560 | -9/Scraptown | Learned location of 1 exit from Research 2612 | -9/Scraptown | Visited The Evicted 2629 | -9/Scraptown | Visited Red Mages 2642 | -9/Scraptown | Visited UFD Registry 2642 | -9/Scraptown | Registered with UFD as "Shockthruster" 2660 | -9/Scraptown | Visited Awakened 2743 | -9/Scraptown | Visited Assassins FH 3078 | -9/Scraptown | Visited Symbiants 3299 | -9/Scraptown | Visited Cave Peace 3347 | -9/Scraptown | Discovered new exit (range 13) 3388 | -9/Scraptown | Guru changed UFD alias to "Metalshell" 3533 | -9/Scraptown | Visited Observation Area 3594 | -9/Scraptown | Visited Chapter 10 3615 | -9/Scraptown | Visited Junk Cannon Lab 3632 | -9/Scraptown | Found Prototype Special Weapon 3655 | -9/Scraptown | Visited Botcube Research 3679 | -9/Scraptown | Visited Infowarlord's Domain 3827 | -9/Scraptown | Visited Derelict Rescue Squad 3851 | -9/Scraptown | Visited Supply Room 3899 | -9/Scraptown | Visited Abandonware Association 3911 | -9/Scraptown | Learned abandonware demo "MELTYB.EXE" 3937 | -9/Scraptown | Visited Science Guys 4024 | -9/Scraptown | Visited LU-1G1's Boring Crew 4076 | -9/Scraptown | Found DRS Beacon 4115 | -9/Scraptown | Found Botcube 4329 | -9/Scraptown | Found Exp. Sensor Array 4629 | -9/Scraptown | Met Optimus 4629 | -9/Scraptown | Accepted into 0bPrime 4684 | -9/Scraptown | Discovered new exit (range 3) 4687 | -9/Scraptown | Entered Factory 4687 | -6/Factory | Evolved 8 slots: Propulsion x2, Utility x4, Weapon x2 4777 | -6/Factory | Identified Junk Cannon 5122 | -6/Factory | Build established: Hacker-Skirmisher 5187 | -6/Factory | Discovered new exit (range 5) 5193 | -6/Factory | Identified exit to Extension 5382 | -6/Factory | Loaded intel: 8 recycling unit locations 5414 | -6/Factory | Central database locked down 5567 | -6/Factory | Discovered new exit (range 8) 5644 | -6/Factory | Identified exit to Lower Caves 5735 | -6/Factory | Learned location of Protoforge (-2) 5765 | -6/Factory | Discovered new exit (range 4) 5767 | -6/Factory | Identified exit to Factory 6108 | -6/Factory | Lost 3 parts (1u2w) 6315 | -6/Factory | Destroyed 7 combat bots 6315 | -6/Factory | Lost 6 parts (1n3u2w) 6437 | -6/Factory | First assault squad dispatched 6617 | -6/Factory | Build established: Skirmisher 6795 | -6/Factory | Entered Extension 6884 | -6/Extension | Loaded intel: 1 recycling unit location 7091 | -6/Extension | Rescued a captive Derelict 7122 | -6/Extension | Build established: Gunner 7126 | -6/Extension | Rescued a captive Derelict 7297 | -6/Extension | Lost 3 parts (1p2n) 7495 | -6/Extension | Spotted B-75 Beast 7518 | -6/Extension | Allies destroyed B-75 Beast 7519 | -6/Extension | Spotted B-75 Beast 7538 | -6/Extension | Destroyed B-75 Beast 7572 | -6/Extension | Lost 3 allies 7589 | -6/Extension | Lost 3 parts (1n1u1w) 7613 | -6/Extension | Build established: Scavenger-Gunner 7984 | -6/Extension | Rescued a captive Derelict 7985 | -6/Extension | Rescued a captive Derelict 8032 | -6/Extension | Rescued A7 8109 | -6/Extension | Discovered exit to Factory (range 10) 8159 | -6/Extension | Discovered new exit (range 6) 8169 | -6/Extension | Build established: Commander-Gunner 8178 | -6/Extension | Identified exit to Cetus 8197 | -6/Extension | Entered Cetus 8197 | -6/Cetus | Accompanied by 11 allies (A7) 8202 | -6/Cetus | Acquired a Cetus Manufacturing Module code from A7 8215 | -6/Cetus | Spotted Cetus Guard 8215 | -6/Cetus | Spotted Cetus Guard 8218 | -6/Cetus | Spotted Cetus Guard 8219 | -6/Cetus | Spotted Cetus Guard 8227 | -6/Cetus | Allies destroyed Cetus Guard 8229 | -6/Cetus | Allies destroyed Cetus Guard 8232 | -6/Cetus | Allies destroyed Cetus Guard 8234 | -6/Cetus | Allies destroyed Cetus Guard 8287 | -6/Cetus | Started Cetus Manufacturing Module 8303 | -6/Cetus | Escorted A7 to Cetus Mainframe 8312 | -6/Cetus | Manufactured an Enhanced Grunt 8315 | -6/Cetus | Discovered new exit (range 16) 8337 | -6/Cetus | Manufactured an Enhanced Grunt 8360 | -6/Cetus | Spotted Cetus Guard 8361 | -6/Cetus | Spotted Cetus Guard 8362 | -6/Cetus | Manufactured an Enhanced Grunt 8364 | -6/Cetus | Spotted Cetus Guard 8364 | -6/Cetus | Attached CPS modules to Cetus Guard. 8365 | -6/Cetus | Spotted Cetus Guard 8366 | -6/Cetus | Attached CPS modules to Cetus Guard. 8371 | -6/Cetus | Allies destroyed Cetus Guard 8373 | -6/Cetus | Allies destroyed Cetus Guard 8373 | -6/Cetus | Allies destroyed Cetus Guard 8379 | -6/Cetus | Destroyed Cetus Guard 8387 | -6/Cetus | Manufactured an Enhanced Grunt 8388 | -6/Cetus | Discovered exit to Factory (range 16) 8400 | -6/Cetus | Met Revision 17 8409 | -6/Cetus | Lost 4 parts (1p1n1u1w) 8412 | -6/Cetus | Manufactured an Enhanced Grunt 8415 | -6/Cetus | Lost 4 allies 8482 | -6/Cetus | Identified exit to Archives 8506 | -6/Cetus | Entered Archives 8506 | -6/Archives | Accompanied by 11 allies (A7) 8511 | -6/Archives | Received a hacking code to weaken MAIN.C 8563 | -6/Archives | Discovered new exit (range 15) 8605 | -6/Archives | Discovered new exit (range 16) 8617 | -6/Archives | Unable to access archive contents 8718 | -6/Archives | Identified exit to Hub_04(d) 8738 | -6/Archives | Entered Hub_04(d) 8738 | -6/Hub_04(d) | Accompanied by 9 allies 8840 | -6/Hub_04(d) | Lost 3 allies 8874 | -6/Hub_04(d) | Core integrity fell below 50% 9147 | -6/Hub_04(d) | Lost 3 parts (1n1u1w) 9209 | -6/Hub_04(d) | Found Prototype Device 9209 | -6/Hub_04(d) | Identified Exp. Thermal Shield 9403 | -6/Hub_04(d) | Build established: Scavenger-Gunner 9439 | -6/Hub_04(d) | Network Hub disabled 9523 | -6/Hub_04(d) | Entered Factory 9523 | -5/Factory | Accompanied by 4 allies 9523 | -5/Factory | Evolved 2 slots: Utility x1, Weapon x1 9684 | -5/Factory | Loaded intel: 8 recycling unit locations 9705 | -5/Factory | Garrison activated, responded to threat 10014 | -5/Factory | Build established: Scavenger-Tank 10123 | -5/Factory | First assault squad dispatched 10282 | -5/Factory | Garrison activated, responded to threat 10405 | -5/Factory | Lost 8 parts (1p3n3u1w) 10469 | -5/Factory | Spotted B-75 Beast 10582 | -5/Factory | System corruption reached 10% 10592 | -5/Factory | Lost 4 parts (2n2w) 10704 | -5/Factory | Lost 5 parts (1n2u2w) 10712 | -5/Factory | Destroyed 8 combat bots 11252 | -5/Factory | Lost 3 parts (2n1u) 11288 | -5/Factory | Discovered new exit (range 16) 11359 | -5/Factory | Identified exit to Upper Caves 11408 | -5/Factory | Lost 3 parts (3w) 11421 | -5/Factory | Build established: Scavenger-Skirmisher 11505 | -5/Factory | System corruption reached 30% 11535 | -5/Factory | Lost 3 parts (1n2u) 11536 | -5/Factory | Found Prototype Processor 11536 | -5/Factory | Identified Exp. Targeting Computer 11696 | -5/Factory | Repaired Centrium Medium Armor Plating 11787 | -5/Factory | Lost 4 parts (3n1w) 11812 | -5/Factory | Build established: Scavenger-Gunner 11862 | -5/Factory | Lost 6 parts (1p3n2w) 11868 | -5/Factory | Destroyed 7 combat bots 11890 | -5/Factory | High security lockdown imminent 11957 | -5/Factory | Lost 10 parts (1p2n2u5w) 11970 | -5/Factory | High security lockdown engaged 12008 | -5/Factory | Crushed by falling debris 12008 | -5/Factory | Core integrity fell below 50% 12031 | -5/Factory | Entered Upper Caves 12032 | -5/Upper Caves | Encountered a Warlord checkpoint 12093 | -5/Upper Caves | Attracted the attention of an 0b10 checkpoint 12113 | -5/Upper Caves | Build established: Scavenger-Mutant 12224 | -5/Upper Caves | Learned 4 Factory zone layouts 12398 | -5/Upper Caves | Lost 5 parts (1p1n2u1w) 12959 | -5/Upper Caves | Core integrity fell below 20% 12997 | -5/Upper Caves | Lost 7 parts (2n2u3w) 13260 | -5/Upper Caves | Build established: Mutant 13792 | -5/Upper Caves | Destroyed by G-50 Soldier with Heavy Laser Last Messages --------------- 13703_ Unknown Flight Unit fries itself beyond repair. 13704_ Acquired 1 matter. 13716_ Acquired 21 matter. 13719_ ZZVQ,P3T/G